bitfinex-derivatives/quotes_ETHF0:USTF0_20251013
["timestamp","ask_amount","ask_price","bid_price","bid_amount"]
[1760363981507,3.19006223,4169.2,4169.1,0.259]
[1760363981802,5.99152637,4169.2,4169.1,0.259]
[1760363981996,3.19302637,4169.2,4169.1,6.3398]
[1760363982201,0.00296414,4169.2,4169.1,6.3398]
[1760363982806,0.00296414,4169.2,4169.1,3.4668]
[1760363983409,0.00296414,4169.2,4169.1,6.3398]
[1760363983909,2.7985,4171.4,4170.5,0.4312]
[1760363984206,2.7985,4170.7,4170.4,3.2078]
[1760363984408,0.43119,4170.8,4170.5,0.259]
[1760363984603,2.7985,4170.7,4170.5,0.259]
[1760363984806,2.7985,4170.6,4170.5,0.259]
[1760363985004,3.56656415,4170.7,4170.5,0.259]
[1760363985202,3.56656415,4170.7,4170.3,0.43122]
[1760363985203,2.7985,4169.9,4168.7,3.2078]
[1760363985406,1.1079,4169.4,4168.9,0.43137]
[1760363985907,3.07983955,4169.3,4169.0,0.259]
[1760363986207,3.07983955,4169.3,4168.0,1.07866]
[1760363986208,2.884,4167.9,4166.6,3.2078]
[1760363986402,0.43152,4167.6,4166.4,4.0198]
[1760363986607,0.259,4167.5,4167.2,0.43154]
[1760363986906,0.43156,4167.1,4166.8,0.43159]
[1760363987207,6.0918,4167.4,4166.6,0.43161]
[1760363987407,2.884,4166.9,4166.6,0.43369624]
[1760363987908,3.08607212,4166.8,4166.7,6.481]
[1760363988109,0.00217835,4167.4,4166.7,6.481]
[1760363988110,0.00217835,4167.4,4167.2,0.43155]
[1760363988309,2.884,4167.3,4167.2,0.259]
[1760363988604,5.97007212,4167.3,4167.2,0.259]
[1760363988804,5.97007212,4167.3,4167.2,0.09651741]
[1760363989107,2.884,4166.9,4166.7,0.4316]
[1760363989405,2.884,4167.3,4166.8,0.43159]
[1760363989606,0.43157,4167.0,4166.7,3.2078]
[1760363989804,3.3156,4166.7,4166.6,0.00208624]
[1760363990003,2.884,4166.7,4166.1,3.2078]
[1760363990206,2.884,4165.9,4165.8,0.259]
[1760363990510,2.884,4165.5,4165.4,0.259]
[1760363990708,2.884,4165.4,4165.2,0.69075]
[1760363991103,0.259,4166.1,4165.2,0.69075]
[1760363991104,2.884,4166.0,4165.2,3.53442538]
[1760363991312,2.884,4166.0,4165.2,0.69283538]
[1760363991506,2.884,4165.4,4165.2,0.69283538]
[1760363991703,2.884,4165.3,4165.2,0.26107538]
[1760363991902,5.9337647,4165.3,4165.2,0.26107538]
[1760363992303,2.884,4165.3,4165.2,0.26107538]
[1760363992508,3.0497647,4165.3,4165.2,3.10267538]
[1760363992706,3.31567,4166.1,4165.2,0.26107538]
[1760363992913,3.143,4166.1,4165.2,0.26107538]
[1760363993211,0.4317,4165.8,4165.3,0.43174]
[1760363993410,2.884,4165.9,4165.4,0.43173]
[1760363993608,3.11852806,4165.7,4165.5,2.8416]
[1760363993911,3.11479511,4165.8,4165.6,0.69071]
[1760363994112,2.884,4165.8,4165.6,0.69071]
[1760363994407,3.2078,4166.2,4165.6,0.259]
[1760363994611,2.884,4165.3,4165.2,0.00207538]
[1760363995007,5.9942648,4165.3,4165.2,0.00207538]
[1760363996412,3.1102648,4165.3,4165.2,0.00207538]
[1760363996603,5.9942648,4165.3,4165.2,0.00207538]
[1760363996907,3.19291764,4165.6,4165.3,0.43174]
[1760363997112,0.43172,4165.6,4165.4,0.43173]
[1760363997307,3.62463764,4165.6,4165.4,0.43173]
[1760363997511,2.884,4165.5,4165.2,0.00207538]
[1760363997712,2.884,4165.3,4165.2,0.00207538]
[1760363998013,6.07479773,4165.3,4165.2,0.00207538]
[1760363999407,2.884,4165.3,4165.2,0.43383538]
[1760363999825,5.98939878,4165.3,4165.2,0.00207538]
[1760364000316,1.1546,4164.0,4162.8,0.02402229]
[1760364000614,2.884,4163.6,4163.3,3.2078]
[1760364000820,5.96969991,4163.9,4162.9,0.259]
[1760364001008,2.884,4164.1,4163.2,3.2078]
[1760364001212,3.2078,4165.2,4164.1,2.8416]
[1760364001413,0.00212662,4165.2,4165.1,0.43177]
[1760364001614,3.2078,4166.3,4166.1,0.43166]
[1760364001916,0.83040264,4168.5,4165.6,1.0793]
[1760364001917,3.2078,4167.3,4166.2,3.4668]
[1760364002116,2.884,4167.8,4167.6,0.4315]
[1760364002319,2.884,4167.8,4166.2,3.4668]
[1760364002320,2.884,4167.8,4165.9,3.2078]
[1760364002519,2.884,4166.9,4166.6,0.4316]
[1760364002708,2.884,4166.9,4166.7,0.69059]
[1760364002914,0.00198917,4167.8,4167.0,0.43157]
[1760364002915,3.20978917,4167.8,4167.0,0.43157]
[1760364003109,3.20978917,4167.8,4166.9,1.07896]
[1760364003317,3.20978917,4167.8,4167.7,0.4315]
[1760364003524,0.00198917,4167.8,4167.7,3.5321]
[1760364003718,3.2078,4169.1,4168.9,0.43137]
[1760364004013,3.2078,4169.6,4168.9,0.259]
[1760364004219,3.2078,4170.1,4169.8,0.43127]
[1760364004922,2.884,4169.9,4169.8,0.0017089]
[1760364005120,3.31527,4169.9,4169.8,0.2597089]
[1760364005322,3.16247093,4169.9,4169.8,0.2597089]
[1760364005528,0.00287979,4170.1,4169.8,3.1013089]
[1760364005712,0.00287979,4170.1,4170.0,2.8416]
[1760364006023,0.00287979,4170.1,4170.0,6.0494]
[1760364006222,6.5229,4171.6,4170.0,3.2078]
[1760364006420,0.18675007,4172.4,4171.2,2.8416]
[1760364006625,6.0918,4172.5,4171.3,0.258]
[1760364006823,2.884,4171.4,4171.3,0.258]
[1760364007023,3.31512,4171.4,4171.3,0.258]
[1760364007225,3.96188,4171.1,4169.8,0.0017089]
[1760364007527,2.884,4169.6,4168.7,3.2078]
[1760364007729,3.2078,4170.2,4169.2,0.43133]
[1760364007730,0.43128,4169.9,4169.2,0.43133]
[1760364007926,0.43129,4169.8,4169.3,3.4658]
[1760364008125,0.43129,4169.8,4169.4,0.258]
[1760364008427,0.43131,4169.5,4169.4,0.00294573]
[1760364008726,3.2078,4170.2,4169.4,3.10254573]
[1760364008927,2.884,4171.3,4169.7,3.2078]
[1760364009114,2.884,4171.3,4170.3,2.8416]
[1760364009320,2.884,4171.9,4170.8,3.27277]
[1760364009516,0.43109,4171.7,4171.0,0.43115]
[1760364009719,0.43109,4171.7,4171.1,2.8416]
[1760364009918,3.17609947,4171.3,4170.7,3.2078]
[1760364010217,2.884,4170.9,4169.7,3.2078]
[1760364010419,0.43124,4170.2,4169.8,0.258]
[1760364010619,2.884,4170.5,4169.8,3.4658]
[1760364010942,2.884,4171.9,4171.3,2.8416]
[1760364011125,2.884,4172.5,4171.3,6.3074]
[1760364011828,0.43103,4172.3,4171.3,3.0996]
[1760364012024,6.0918,4172.5,4171.3,3.0996]
[1760364012225,0.022,4172.8,4172.7,0.43098]
[1760364012424,0.022,4172.8,4172.7,3.53058]
[1760364013026,0.022,4172.8,4172.7,0.68898]
[1760364013231,0.02500111,4172.8,4172.7,3.53269093]
[1760364013427,3.63862,4174.3,4173.6,0.43088]
[1760364013733,3.63862,4174.3,4173.7,0.258]
[1760364013734,2.884,4174.3,4173.7,0.258]
[1760364013932,0.43092,4173.4,4172.7,0.00211093]
[1760364014239,0.43097,4172.9,4172.7,0.26011093]
[1760364014431,2.884,4172.8,4172.7,0.26011093]
[1760364014731,5.98314688,4172.8,4172.7,0.00211093]
[1760364015430,5.98314688,4172.8,4171.2,1.1782]
[1760364015431,2.7338,4172.7,4171.3,3.2078]
[1760364015632,2.7338,4172.7,4171.4,3.1118]
[1760364015931,3.49864234,4172.6,4171.7,0.43108]
[1760364016127,3.49864234,4172.6,4171.4,2.8538]
[1760364016128,3.06764234,4172.6,4171.4,2.8538]
[1760364016438,3.06764234,4172.6,4171.4,0.00178035]
[1760364016439,3.16491,4171.5,4171.4,0.00178035]
[1760364016728,3.16491,4171.5,4170.1,2.8538]
[1760364016729,0.43119,4170.8,4170.4,0.258]
[1760364016934,5.83411054,4171.5,4170.6,3.2078]
[1760364017122,0.43109,4171.7,4171.4,2.8538]
[1760364017321,0.43109,4171.7,4171.2,3.63893]
[1760364017322,5.9416,4172.1,4171.5,0.258]
[1760364017524,5.9416,4172.1,4170.5,2.8538]
[1760364017525,0.43112,4171.4,4170.5,2.8538]
[1760364017725,2.7338,4170.9,4170.6,0.258]
[1760364017925,2.7338,4171.5,4170.7,3.2078]
[1760364018126,1.154,4172.8,4170.8,2.8538]
[1760364018322,4.3624,4173.6,4172.3,0.43102]
[1760364018532,3.18711054,4172.7,4172.6,2.8538]
[1760364018734,3.2078,4173.6,4172.6,2.8538]
[1760364018932,0.43099,4172.7,4172.0,3.2078]
[1760364019129,3.2078,4172.3,4172.1,0.258]
[1760364019330,2.7338,4171.6,4170.8,3.2078]
[1760364019539,2.7338,4171.6,4170.9,0.258]
[1760364019735,3.2078,4172.6,4171.5,2.8538]
[1760364020037,3.2078,4172.6,4172.1,0.43103]
[1760364020038,3.47636405,4172.6,4172.1,0.43103]
[1760364020234,6.25317405,4172.6,4172.2,0.258]
[1760364020534,6.25317405,4172.6,4170.7,3.2078]
[1760364020535,11.85284,4172.5,4170.7,3.2078]
[1760364020729,2.7338,4171.9,4171.0,0.43115]
[1760364020930,2.7338,4171.9,4171.1,0.258]
[1760364021138,0.43112,4171.4,4171.2,0.258]
[1760364021337,2.7338,4171.3,4171.2,0.258]
[1760364021525,3.165,4170.6,4170.5,0.26103302]
[1760364021730,3.2078,4170.8,4170.6,2.8538]
[1760364021938,0.4312,4170.6,4170.5,0.26103302]
[1760364022137,6.29914199,4170.6,4170.5,0.26103302]
[1760364022434,2.7338,4171.3,4170.5,0.26103302]
[1760364022635,3.2078,4171.9,4170.8,3.2078]
[1760364022826,2.7338,4171.9,4171.8,3.2078]
[1760364023031,3.2078,4172.6,4171.8,3.4658]
[1760364023334,2.7338,4172.8,4172.2,2.8538]
[1760364023535,0.00280223,4172.9,4172.3,0.258]
[1760364023536,3.14665504,4172.5,4172.3,0.258]
[1760364023735,2.7338,4172.4,4172.3,0.258]
[1760364024131,3.16481,4172.4,4172.3,0.258]
[1760364024332,6.30721777,4172.4,4172.3,0.258]
[1760364024532,2.7338,4172.2,4171.8,3.2078]
[1760364024845,0.43101,4172.5,4172.1,3.28484]
[1760364025025,0.00280223,4172.9,4172.4,3.2078]
[1760364025232,2.7338,4172.8,4172.5,0.689]
[1760364025427,3.12848969,4172.8,4172.5,0.258]
[1760364025641,0.43097,4172.8,4172.5,0.68899]
[1760364025933,0.43105,4172.0,4171.9,3.2078]
[1760364026136,0.43119,4170.7,4170.5,3.21083302]
[1760364026328,3.2078,4170.7,4170.5,0.00303302]
[1760364026634,3.2078,4171.9,4171.7,0.43108]
[1760364026833,3.2078,4171.9,4171.7,0.258]
[1760364026834,3.63887,4171.9,4171.7,0.258]
[1760364027136,0.43112,4171.4,4171.0,2.8538]
[1760364027346,3.2078,4171.9,4171.1,0.258]
[1760364027347,3.09804341,4171.8,4171.1,0.258]
[1760364027634,6.26297341,4171.3,4171.1,0.258]
[1760364027840,2.7338,4171.2,4171.1,0.258]
[1760364028038,0.4312,4170.7,4170.3,0.43123]
[1760364028229,0.4312,4170.7,4169.8,2.8538]
[1760364028230,3.639,4170.7,4169.8,3.28508]
[1760364028429,3.639,4170.7,4169.3,3.2078]
[1760364028430,0.43132,4169.5,4169.3,3.2078]
[1760364028732,2.7338,4169.3,4169.1,0.258]
[1760364029034,3.2078,4169.4,4169.2,0.258]
[1760364029335,3.15229399,4169.2,4168.9,0.258]
[1760364029532,0.00180064,4169.2,4169.0,2.8538]
[1760364029842,0.00180064,4169.2,4168.9,0.26058377]
[1760364029843,3.16516,4169.0,4168.9,0.00258377]
[1760364030032,0.43148,4168.0,4167.8,0.02399347]
[1760364030228,0.43148,4168.0,4167.9,0.258]
[1760364030429,3.63925,4168.2,4167.9,0.258]
[1760364030740,5.94340064,4169.2,4168.1,2.8538]
[1760364030931,5.94340064,4169.2,4168.1,2.85629964]
[1760364031133,5.94340064,4169.2,4168.1,0.00249964]
[1760364031134,3.16524,4168.3,4168.1,0.00249964]
[1760364031335,3.15241703,4169.1,4168.1,6.06409964]
[1760364031533,3.56420264,4171.1,4169.5,1.07827]
[1760364031834,3.2078,4171.1,4169.9,3.2078]
[1760364032034,3.2078,4170.6,4170.0,0.258]
[1760364032238,0.43129,4169.8,4169.3,0.258]
[1760364032544,3.17826498,4169.7,4169.4,2.8538]
[1760364032739,2.7338,4169.5,4169.3,0.258]
[1760364032938,2.7338,4169.4,4168.1,0.00249964]
[1760364033141,3.2078,4168.7,4168.4,0.258]
[1760364033338,3.2078,4168.8,4168.7,2.8538]
[1760364033534,3.16522,4168.5,4168.4,0.258]
[1760364033738,3.14061759,4168.6,4168.5,2.8538]
[1760364034037,0.43141,4168.6,4168.5,0.258]
[1760364034247,5.88646414,4168.6,4168.5,0.258]
[1760364034449,5.88646414,4168.6,4168.5,3.54322]
[1760364034450,3.15266414,4168.6,4168.5,3.54322]
[1760364034743,3.2078,4169.5,4169.3,0.43133]
[1760364034944,3.2078,4169.5,4169.4,0.258]
[1760364035243,0.00179254,4169.8,4169.5,0.43131]
[1760364035447,0.00179254,4169.8,4169.4,3.1118]
[1760364035744,3.12185012,4169.7,4169.5,3.28511]
[1760364035948,3.6391,4169.6,4169.5,2.8538]
[1760364036441,6.33251019,4169.6,4169.4,0.68932]
[1760364036643,0.00179254,4169.8,4169.5,2.8538]
[1760364036847,6.30878176,4169.5,4169.4,0.258]
[1760364037244,3.16511,4169.5,4169.4,0.258]
[1760364037444,6.30878176,4169.5,4169.4,0.258]
[1760364037847,6.30878176,4169.5,4168.2,3.2078]
[1760364037848,2.7338,4169.2,4168.2,3.2078]
[1760364038149,0.43141,4168.6,4168.3,0.258]
[1760364038443,0.00179254,4169.8,4169.0,2.8538]
[1760364038643,3.2078,4171.0,4170.1,3.28505]
[1760364038840,1.56518668,4170.2,4170.1,3.54305]
[1760364039041,1.56518668,4170.2,4170.1,3.28505]
[1760364039249,1.56518668,4170.2,4170.1,0.258]
[1760364039436,1.56518668,4170.2,4170.1,3.1118]
[1760364039643,1.56760366,4170.2,4170.1,3.1118]
[1760364039842,0.00241698,4170.2,4170.1,2.8538]
[1760364040148,0.00241698,4170.2,4170.1,0.258]
[1760364040340,0.00241698,4170.2,4170.1,3.1118]
[1760364040552,3.63887,4171.9,4171.6,0.43109]
[1760364040743,3.63887,4171.9,4170.1,3.4658]
[1760364040744,2.7338,4171.8,4171.3,0.258]
[1760364040949,2.7338,4171.3,4171.1,0.68914]
[1760364041145,1.154,4172.0,4171.1,0.258]
[1760364041450,0.4311,4171.6,4171.2,0.43113]
[1760364041648,2.7338,4171.7,4171.5,0.4311]
[1760364041949,2.7338,4171.2,4171.1,0.00229501]
[1760364042244,2.7338,4171.2,4171.1,0.26029501]
[1760364042446,6.98365662,4171.2,4171.1,0.00229501]
[1760364042840,9.30685662,4171.2,4171.1,0.00229501]
[1760364043053,0.43122,4170.4,4170.3,0.258]
[1760364043245,2.7338,4171.0,4170.3,0.258]
[1760364043548,2.3232,4171.2,4171.1,2.8538]
[1760364043848,2.3232,4171.2,4171.1,3.1118]
[1760364044054,5.057,4171.2,4171.1,0.00195054]
[1760364044446,8.15562871,4171.2,4171.1,0.00195054]
[1760364044744,6.211,4171.2,4171.1,0.00195054]
[1760364044948,9.26427164,4171.2,4171.1,0.00195054]
[1760364045243,8.11027164,4171.2,4171.1,0.00195054]
[1760364045447,5.057,4171.2,4171.1,0.00195054]
[1760364045648,2.3232,4171.2,4171.1,0.00195054]
[1760364045846,0.43111,4171.5,4171.3,0.43113]
[1760364046052,2.8915,4171.2,4171.1,0.00195054]
[1760364046251,2.8915,4171.2,4171.1,0.25995054]
[1760364046447,7.06385901,4171.2,4171.1,0.25995054]
[1760364046654,7.06385901,4171.2,4171.1,0.00195054]
[1760364047151,7.06385901,4171.2,4169.7,2.7297]
[1760364047152,3.32272,4170.5,4170.4,0.258]
[1760364047456,1.1051,4170.4,4170.1,0.258]
[1760364047754,3.32274,4170.2,4170.1,0.258]
[1760364047949,3.11414647,4170.3,4170.1,0.26048873]
[1760364048163,3.2078,4171.7,4170.4,1.07806]
[1760364048455,3.08493856,4171.7,4171.4,0.43111]
[1760364048751,3.3226,4171.6,4171.5,0.258]
[1760364048941,3.3226,4171.6,4170.2,3.2078]
[1760364048942,4.28555,4171.6,4170.2,3.2078]
[1760364049248,2.8915,4170.3,4169.7,5.9375]
[1760364049449,3.32271,4170.6,4170.2,0.258]
[1760364049651,4.28568,4171.1,4170.2,0.258]
[1760364049955,2.8915,4170.9,4170.2,0.258]
[1760364050152,2.8915,4170.9,4170.1,0.26048873]
[1760364050153,0.43124,4170.3,4170.1,0.26048873]
[1760364050449,6.04831824,4170.2,4170.1,0.00248873]
[1760364050658,2.8915,4169.3,4168.7,3.2078]
[1760364050953,1.53649,4168.8,4167.8,0.02399347]
[1760364051151,2.8915,4168.2,4167.9,0.68948]
[1760364051355,0.43146,4168.1,4167.9,0.258]
[1760364051549,0.43146,4168.1,4167.8,0.02399347]
[1760364051550,3.32298,4167.9,4167.8,0.02399347]
[1760364051945,6.38168336,4167.9,4167.8,0.02576899]
[1760364052352,3.32304,4167.3,4167.2,0.258]
[1760364052557,6.53084,4167.3,4167.2,0.258]
[1760364052755,0.43161,4166.7,4166.2,0.258]
[1760364052953,2.8915,4166.6,4166.2,0.258]
[1760364053159,2.8915,4166.3,4166.2,0.258]
[1760364053450,2.8915,4166.3,4165.2,3.2078]
[1760364053451,2.8915,4166.1,4166.0,0.258]
[1760364053647,3.2078,4166.2,4165.9,0.258]
[1760364053847,2.8915,4166.1,4165.9,0.258]
[1760364054044,5.97580662,4166.1,4165.9,0.258]
[1760364054247,2.8915,4166.0,4165.9,0.258]
[1760364055051,0.258,4166.9,4166.3,0.43164]
[1760364055254,2.8915,4166.8,4165.9,4.54501]
[1760364055459,2.8915,4167.1,4166.9,0.43158]
[1760364055664,5.95578206,4167.1,4166.9,0.43158]
[1760364055957,3.2078,4167.2,4166.7,0.258]
[1760364056151,3.05324417,4167.0,4166.7,0.258]
[1760364056350,2.8915,4167.0,4166.8,0.43159]
[1760364056548,2.8915,4167.6,4166.7,3.4658]
[1760364056847,3.14131792,4167.4,4166.7,3.4658]
[1760364057152,2.8915,4167.6,4167.4,0.43152]
[1760364057356,2.8915,4167.9,4167.5,0.258]
[1760364057558,2.8915,4167.9,4167.7,0.43149]
[1760364057857,2.8915,4167.5,4165.8,5.9375]
[1760364058045,1.0788,4167.6,4165.8,5.9375]
[1760364058046,2.8915,4166.8,4166.4,0.43163]
[1760364058253,2.8915,4166.7,4166.4,0.43163]
[1760364058445,3.63937,4167.0,4166.6,0.43161]
[1760364058653,0.43162,4166.5,4166.0,0.43167]
[1760364058950,0.43162,4166.5,4166.2,0.43165]
[1760364058951,6.07522253,4166.4,4166.2,0.43165]
[1760364059152,3.18372253,4166.4,4166.2,0.43165]
[1760364059353,2.8915,4166.5,4166.2,0.43165]
[1760364059556,2.8915,4166.4,4166.2,0.43165]
[1760364059753,0.43162,4166.6,4166.1,0.258]
[1760364059962,3.2078,4167.6,4166.5,5.9375]
[1760364060255,2.89438657,4168.1,4167.9,0.43148]
[1760364060452,0.00288657,4168.1,4168.0,0.258]
[1760364060645,0.00288657,4168.1,4167.0,2.7297]
[1760364060646,3.32298,4167.9,4167.0,2.7297]
[1760364060846,3.32298,4167.9,4166.6,1.07902]
[1760364060847,2.8915,4167.6,4167.4,0.43152]
[1760364061052,0.00288657,4168.1,4168.0,0.43147]
[1760364061348,2.8915,4167.8,4166.6,2.7297]
[1760364061549,0.4316,4166.8,4166.7,0.258]
[1760364061750,2.8915,4167.4,4166.7,0.6896]
[1760364061946,3.2078,4167.1,4166.7,0.258]
[1760364062150,3.2078,4167.1,4166.8,0.68958]
[1760364062348,3.07839558,4167.5,4166.9,0.258]
[1760364062651,3.07839558,4167.5,4166.4,5.9375]
[1760364062652,2.8915,4167.5,4167.0,0.258]
[1760364062952,6.0993,4167.1,4167.0,0.258]
[1760364063257,1.1051,4168.0,4167.5,3.16122]
[1760364063258,3.2078,4167.6,4167.5,3.16122]
[1760364063556,3.2078,4167.6,4167.5,0.68952]
[1760364063761,3.2078,4167.6,4167.5,3.41922]
[1760364064658,3.2078,4167.6,4167.5,0.258]
[1760364064866,3.2078,4167.6,4167.5,2.9877]
[1760364065248,3.21068657,4168.1,4167.7,0.4315]
[1760364065452,3.21068657,4168.1,4166.8,3.2078]
[1760364065453,0.43155,4167.2,4167.0,2.7297]
[1760364065660,0.43155,4167.2,4166.4,1.095]
[1760364065661,0.43159,4166.9,4166.6,0.43161]
[1760364065953,3.2078,4167.2,4166.8,2.7297]
[1760364065954,0.43158,4167.0,4166.8,2.7297]
[1760364066155,0.43157,4167.0,4166.9,0.258]
[1760364066362,0.4316,4166.8,4166.2,2.7297]
[1760364066562,0.4316,4166.8,4166.3,0.258]
[1760364066858,2.8915,4167.2,4166.5,0.43162]
[1760364067060,2.8915,4167.2,4165.7,1.07927]
[1760364067061,3.97062,4166.3,4164.8,3.2078]
[1760364067351,4.3129,4166.4,4164.0,0.43188]
[1760364067352,0.43185,4164.4,4164.0,0.43188]
[1760364067554,0.43445734,4164.4,4164.1,0.68986]
[1760364067749,0.00260734,4164.4,4164.2,2.7297]
[1760364068146,0.00260734,4164.4,4164.2,0.43186]
[1760364068350,0.00260734,4164.4,4164.3,2.7297]
[1760364068763,3.2078,4165.8,4165.7,0.43171]
[1760364069056,3.2078,4166.3,4165.7,2.9877]
[1760364069266,3.2078,4166.9,4166.8,0.43159]
[1760364069469,3.2078,4167.4,4167.2,0.43154]
[1760364069662,1.07849,4168.8,4166.7,0.258]
[1760364069663,3.2078,4172.2,4170.6,1.095]
[1760364069968,0.00181086,4171.7,4171.6,0.4311]
[1760364070165,1.1051,4174.1,4172.7,0.43098]
[1760364070461,1.1051,4174.1,4172.9,0.43096]
[1760364070462,1.1051,4173.4,4172.9,0.43096]
[1760364070671,1.1051,4173.4,4172.7,0.258]
[1760364070861,0.3163,4173.3,4173.1,0.43094]
[1760364071055,0.31907067,4173.3,4172.8,3.2078]
[1760364071258,0.31907067,4173.3,4172.8,3.63877]
[1760364071259,0.3163,4173.2,4172.8,3.63877]
[1760364071459,0.3163,4173.2,4172.8,3.2078]
[1760364071861,0.3163,4173.1,4172.8,3.63876]
[1760364072158,0.3163,4173.1,4172.8,3.2078]
[1760364072563,2.8915,4173.0,4172.9,0.258]
[1760364073367,3.2078,4173.0,4172.9,0.258]
[1760364073664,2.8915,4172.9,4172.8,3.2078]
[1760364073866,3.2078,4172.9,4172.8,3.2078]
[1760364074056,3.9966,4172.4,4172.3,3.2078]
[1760364074257,3.9966,4172.4,4171.7,0.43108]
[1760364074258,3.9966,4172.4,4171.7,3.2078]
[1760364074463,7.14416083,4172.4,4171.8,0.258]
[1760364074764,7.14416083,4172.4,4171.9,0.258]
[1760364074765,2.8915,4172.2,4171.9,0.258]
[1760364074959,3.2078,4172.3,4172.2,0.43103]
[1760364075160,2.8915,4172.3,4172.2,0.43103]
[1760364075359,3.2078,4172.3,4172.2,0.68903]
[1760364075565,3.2078,4172.3,4172.2,0.43103]
[1760364075763,3.0702,4173.0,4172.8,0.43097]
[1760364075968,3.0702,4173.2,4172.9,3.4658]
[1760364076168,3.0702,4173.2,4173.0,0.258]
[1760364076169,3.0702,4173.1,4173.0,0.258]
[1760364076363,3.3865,4173.1,4173.0,0.258]
[1760364076563,3.3865,4173.1,4173.0,0.68895]
[1760364076764,3.0702,4173.0,4172.9,3.2078]
[1760364076972,3.0702,4173.0,4172.9,0.258]
[1760364077164,3.3865,4173.0,4172.9,3.4658]
[1760364078469,3.3865,4173.0,4172.9,3.2078]
[1760364078769,6.43062711,4173.0,4172.9,3.4658]
[1760364079272,6.43062711,4173.0,4172.9,0.258]
[1760364080371,3.3865,4173.0,4172.9,0.258]
[1760364080580,3.0702,4173.0,4172.9,3.4658]
[1760364080768,2.8248,4173.1,4173.0,0.43095]
[1760364083482,1.9017794,4173.1,4173.0,0.43095]
[1760364083673,1.0821094,4173.1,4173.0,0.43095]
[1760364083874,7e-08,4173.3,4173.2,0.43093]
[1760364084172,7e-08,4173.3,4173.2,0.68893]
[1760364084375,3.2902,4175.3,4175.2,0.43072]
[1760364084675,0.22,4175.3,4175.2,3.89652]
[1760364085378,0.22,4175.3,4175.2,3.4677122]
[1760364085379,3.60838617,4175.3,4175.2,3.4677122]
[1760364085688,0.22188617,4175.3,4175.2,3.4677122]
[1760364086381,6.17e-06,4175.3,4175.2,3.4677122]
[1760364086678,6.17e-06,4175.3,4175.2,3.4667122]
[1760364086876,6.17e-06,4175.3,4175.2,0.0019122]
[1760364086877,3.81721617,4175.3,4175.2,0.0019122]
[1760364087079,3.81721617,4175.3,4175.2,0.2599122]
[1760364087277,3.81721617,4175.3,4175.2,3.4677122]
[1760364087278,6.17e-06,4175.3,4175.2,3.4677122]
[1760364087468,3.38650617,4175.3,4175.2,0.2599122]
[1760364087669,3.81721617,4175.3,4175.2,0.2599122]
[1760364087870,0.4308,4174.5,4174.1,3.63863]
[1760364088183,0.4308,4174.5,4173.3,1.07729]
[1760364088184,3.0702,4173.7,4173.6,3.2078]
[1760364088480,5.33966445,4174.4,4173.6,3.2078]
[1760364088481,3.2078,4174.1,4173.6,0.258]
[1760364088674,3.2078,4174.1,4172.6,3.2078]
[1760364088675,3.0702,4173.5,4172.6,3.2078]
[1760364088870,1.1737,4173.6,4172.6,0.00276238]
[1760364088871,4.3815,4173.6,4172.6,0.00276238]
[1760364089070,0.43107,4171.9,4171.6,3.2078]
[1760364089280,1.1737,4172.8,4171.1,3.2078]
[1760364089281,0.4311,4171.6,4171.1,3.2078]
[1760364089579,0.4312,4170.7,4170.1,3.2078]
[1760364089776,1.1737,4170.4,4170.2,0.258]
[1760364089983,1.1737,4170.4,4170.2,0.00281331]
[1760364089984,3.0702,4170.3,4170.2,0.00281331]
[1760364090275,3.50143,4170.3,4170.2,0.00281331]
[1760364090479,3.50143,4170.3,4168.3,1.07859]
[1760364090480,0.43131,4169.5,4169.1,3.2078]
[1760364090685,0.43131,4169.5,4169.2,0.258]
[1760364090982,3.0702,4168.8,4168.1,3.2078]
[1760364091182,3.0702,4168.8,4168.2,0.258]
[1760364091183,0.43142,4168.5,4168.2,0.258]
[1760364091380,3.0702,4168.7,4168.2,0.258]
[1760364091381,3.12278562,4168.7,4168.2,3.46725147]
[1760364091572,3.0702,4168.7,4168.5,0.43141]
[1760364091776,3.0702,4168.7,4168.6,0.258]
[1760364092083,3.0702,4168.7,4168.6,0.68941]
[1760364092285,3.0702,4168.7,4168.6,0.258]
[1760364093577,3.0702,4168.7,4168.2,3.20925147]
[1760364093578,3.0702,4168.3,4168.2,3.20925147]
[1760364093778,3.0702,4168.3,4168.2,0.25945147]
[1760364093981,3.0702,4168.3,4168.2,0.56152703]
[1760364094380,3.0702,4168.3,4168.2,0.30352703]
[1760364094577,3.0702,4168.3,4167.1,3.2078]
[1760364094578,3.0702,4168.2,4167.1,3.2078]
[1760364094885,3.0702,4167.8,4167.2,0.258]
[1760364095087,4.2439,4167.9,4167.2,0.68954]
[1760364095281,4.2439,4167.9,4167.2,0.258]
[1760364095486,6.36186294,4168.6,4167.2,0.258]
[1760364095487,3.0702,4168.1,4167.2,0.258]
[1760364095684,3.2078,4167.6,4167.3,0.258]
[1760364095887,3.0702,4167.5,4167.4,0.258]
[1760364096183,3.0702,4167.8,4167.4,0.68952]
[1760364096387,3.0702,4167.8,4167.6,0.43151]
[1760364096681,3.0702,4167.8,4167.4,0.258]
[1760364096886,1.1737,4167.9,4167.4,0.258]
[1760364096887,0.43151,4167.6,4167.4,0.258]
[1760364097186,0.43151,4167.6,4165.2,11.56008163]
[1760364097187,1.1737,4167.0,4166.1,3.2078]
[1760364097486,1.1737,4167.0,4165.2,0.24008163]
[1760364097487,3.50187,4166.0,4165.2,0.24008163]